[Event "Titled Tuesday Blitz July 13 2021"]
[White "Cunjalo, Faris"]
[Black "Weinstein, Norman"]
[WhiteFideId "14410710"]
[BlackFideId "2000466"]
[WhiteElo "2234"]
[BlackElo "2543"]
[Result "1-0"]
[Round "02"]
[TimeControl "180+1"]
[Date "2021.07.13"]
[WhiteClock "0:00:30"]
[BlackClock "0:00:01"]

1. c4 {[%clk 0:03:00]}  c5 {[%clk 0:02:57]} 2. Nf3 {[%clk 0:02:59]}  Nf6 {[%clk 0:02:57]} 3. Nc3 {[%clk 0:02:59]}  g6 {[%clk 0:02:55]} 4. e3 {[%clk 0:02:59]}  Bg7 {[%clk 0:02:55]} 5. d4 {[%clk 0:02:59]}  O-O {[%clk 0:02:55]} 6. Be2 {[%clk 0:02:50]}  d5 {[%clk 0:02:55]} 7. dxc5 {[%clk 0:02:50]}  dxc4 {[%clk 0:02:54]} 8. O-O {[%clk 0:02:50]}  Qa5 {[%clk 0:02:53]} 9. Bxc4 {[%clk 0:02:46]}  Qxc5 {[%clk 0:02:52]} 10. Be2 {[%clk 0:02:46]}  Nc6 {[%clk 0:02:51]} 11. Qa4 {[%clk 0:02:43]}  Qb4 {[%clk 0:02:49]} 12. Qxb4 {[%clk 0:02:38]}  Nxb4 {[%clk 0:02:49]} 13. a3 {[%clk 0:02:38]}  Nc6 {[%clk 0:02:48]} 14. Bd2 {[%clk 0:02:35]}  Be6 {[%clk 0:02:44]} 15. b4 {[%clk 0:02:29]}  Rfd8 {[%clk 0:02:39]} 16. Rfc1 {[%clk 0:02:26]}  Rac8 {[%clk 0:02:38]} 17. Be1 {[%clk 0:02:24]}  a6 {[%clk 0:02:29]} 18. h3 {[%clk 0:02:19]}  Nd5 {[%clk 0:02:26]} 19. Ng5 {[%clk 0:02:15]}  Nxc3 {[%clk 0:02:20]} 20. Bxc3 {[%clk 0:02:16]}  Bxc3 {[%clk 0:02:06]} 21. Rxc3 {[%clk 0:02:17]}  Nd4 {[%clk 0:01:59]} 22. Rxc8 {[%clk 0:02:16]}  Nxe2+ {[%clk 0:01:58]} 23. Kf1 {[%clk 0:02:17]}  Ng3+ {[%clk 0:01:39]} 24. fxg3 {[%clk 0:02:18]}  Bxc8 {[%clk 0:01:39]} 25. Ke2 {[%clk 0:02:15]}  h6 {[%clk 0:01:37]} 26. Nf3 {[%clk 0:02:15]}  Be6 {[%clk 0:01:34]} 27. Rc1 {[%clk 0:02:14]}  Rc8 {[%clk 0:01:34]} 28. Rxc8+ {[%clk 0:02:11]}  Bxc8 {[%clk 0:01:33]} 29. Kd3 {[%clk 0:02:10]}  Kg7 {[%clk 0:01:31]} 30. Kd4 {[%clk 0:02:09]}  b6 {[%clk 0:01:30]} 31. Ne5 {[%clk 0:02:01]}  Bb7 {[%clk 0:01:23]} 32. e4 {[%clk 0:02:01]}  f5 {[%clk 0:01:20]} 33. exf5 {[%clk 0:01:55]}  gxf5 {[%clk 0:01:20]} 34. Nd7 {[%clk 0:01:55]}  Bxg2 {[%clk 0:01:17]} 35. h4 {[%clk 0:01:54]}  Kg6 {[%clk 0:01:11]} 36. Ke5 {[%clk 0:01:39]}  Bc6 {[%clk 0:01:04]} 37. Nxb6 {[%clk 0:01:35]}  Be4 {[%clk 0:00:57]} 38. Nc8 {[%clk 0:01:29]}  Kf7 {[%clk 0:00:50]} 39. Nb6 {[%clk 0:01:23]}  Kg6 {[%clk 0:00:49]} 40. Nc4 {[%clk 0:01:22]}  Kh5 {[%clk 0:00:46]} 41. Ne3 {[%clk 0:01:22]}  Kg6 {[%clk 0:00:45]} 42. a4 {[%clk 0:01:20]}  Bc6 {[%clk 0:00:42]} 43. Nxf5 {[%clk 0:01:20]}  Bxa4 {[%clk 0:00:41]} 44. Nxe7+ {[%clk 0:01:20]}  Kf7 {[%clk 0:00:40]} 45. Nf5 {[%clk 0:01:19]}  h5 {[%clk 0:00:39]} 46. Nd4 {[%clk 0:01:19]}  Bd1 {[%clk 0:00:38]} 47. Ne6 {[%clk 0:01:15]}  Ke7 {[%clk 0:00:37]} 48. Nc5 {[%clk 0:01:13]}  Be2 {[%clk 0:00:36]} 49. Ne4 {[%clk 0:01:05]}  Kd7 {[%clk 0:00:34]} 50. Kd5 {[%clk 0:01:04]}  Bf3 {[%clk 0:00:33]} 51. Kd4 {[%clk 0:01:03]}  Kc6 {[%clk 0:00:29]} 52. Nc3 {[%clk 0:01:02]}  Kd6 {[%clk 0:00:24]} 53. Na4 {[%clk 0:00:57]}  Kc6 {[%clk 0:00:20]} 54. Nc5 {[%clk 0:00:57]}  Kb5 {[%clk 0:00:20]} 55. Nd3 {[%clk 0:00:51]}  Be2 {[%clk 0:00:17]} 56. Nf4 {[%clk 0:00:51]}  Bd1 {[%clk 0:00:17]} 57. Kc3 {[%clk 0:00:51]}  Bg4 {[%clk 0:00:16]} 58. Nd5 {[%clk 0:00:48]}  Be6 {[%clk 0:00:15]} 59. Ne3 {[%clk 0:00:47]}  Kc6 {[%clk 0:00:12]} 60. Ng2 {[%clk 0:00:44]}  Kd6 {[%clk 0:00:11]} 61. Kd4 {[%clk 0:00:43]}  Kc6 {[%clk 0:00:11]} 62. Nf4 {[%clk 0:00:43]}  Bg4 {[%clk 0:00:11]} 63. Nd3 {[%clk 0:00:43]}  Kb5 {[%clk 0:00:11]} 64. Kc3 {[%clk 0:00:44]}  Be2 {[%clk 0:00:09]} 65. Ne5 {[%clk 0:00:40]}  Bd1 {[%clk 0:00:08]} 66. Nc4 {[%clk 0:00:36]}  Be2 {[%clk 0:00:07]} 67. Nd6+ {[%clk 0:00:34]}  Kc6 {[%clk 0:00:06]} 68. Ne4 {[%clk 0:00:35]}  Kb5 {[%clk 0:00:06]} 69. Kb3 {[%clk 0:00:34]}  Bd1+ {[%clk 0:00:05]} 70. Ka3 {[%clk 0:00:34]}  Bg4 {[%clk 0:00:04]} 71. Nf6 {[%clk 0:00:33]}  Bf3 {[%clk 0:00:05]} 72. Nd7 {[%clk 0:00:32]}  a5 {[%clk 0:00:04]} 73. bxa5 {[%clk 0:00:31]}  Kxa5 {[%clk 0:00:05]} 74. Kb3 {[%clk 0:00:32]}  Kb5 {[%clk 0:00:05]} 75. Kc3 {[%clk 0:00:32]}  Bd1 {[%clk 0:00:04]} 76. Kd4 {[%clk 0:00:32]}  Kc6 {[%clk 0:00:04]} 77. Ne5+ {[%clk 0:00:25]}  Kd6 {[%clk 0:00:04]} 78. Ke4 {[%clk 0:00:26]}  Ke6 {[%clk 0:00:04]} 79. Kf4 {[%clk 0:00:27]}  Kf6 {[%clk 0:00:04]} 80. Nf3 {[%clk 0:00:28]}  Bxf3 {[%clk 0:00:03]} 81. Kxf3 {[%clk 0:00:27]}  Kf5 {[%clk 0:00:04]} 82. Ke3 {[%clk 0:00:28]}  Ke5 {[%clk 0:00:04]} 83. Kd3 {[%clk 0:00:28]}  Kd5 {[%clk 0:00:04]} 84. Ke2 {[%clk 0:00:29]}  Ke4 {[%clk 0:00:03]} 85. Kf2 {[%clk 0:00:28]}  Ke5 {[%clk 0:00:03]} 86. Ke3 {[%clk 0:00:29]}  Ke6 {[%clk 0:00:01]} 87. Ke2 {[%clk 0:00:30]} 1-0


[Site "https://www.chess.com"]

[Event "Titled Tuesday Blitz July 13 2021"]
[White "De Silva, L M S T"]
[Black "Warchol, Kamil"]
[WhiteFideId "9953698"]
[BlackFideId "21858241"]
[WhiteElo "1621"]
[BlackElo "1694"]
[Result "1-0"]
[Round "02"]
[TimeControl "180+1"]
[Date "2021.07.13"]
[WhiteClock "0:00:16"]
[BlackClock "0:00:01"]

1. e4 {[%clk 0:03:00]}  c5 {[%clk 0:02:59]} 2. Nf3 {[%clk 0:03:00]}  d6 {[%clk 0:02:59]} 3. Bb5+ {[%clk 0:03:00]}  Nd7 {[%clk 0:02:58]} 4. Ba4 {[%clk 0:03:01]}  a6 {[%clk 0:02:57]} 5. c4 {[%clk 0:02:59]}  Nf6 {[%clk 0:02:50]} 6. O-O {[%clk 0:02:59]}  e6 {[%clk 0:02:46]} 7. Re1 {[%clk 0:02:57]}  Be7 {[%clk 0:02:45]} 8. d4 {[%clk 0:02:58]}  cxd4 {[%clk 0:02:44]} 9. Qxd4 {[%clk 0:02:59]}  O-O {[%clk 0:02:44]} 10. Nc3 {[%clk 0:02:58]}  Qc7 {[%clk 0:02:42]} 11. Bg5 {[%clk 0:02:46]}  Ne5 {[%clk 0:02:39]} 12. Nxe5 {[%clk 0:02:38]}  dxe5 {[%clk 0:02:38]} 13. Qd3 {[%clk 0:02:39]}  h6 {[%clk 0:02:36]} 14. Bh4 {[%clk 0:02:38]}  Rd8 {[%clk 0:02:35]} 15. Qe2 {[%clk 0:02:38]}  b6 {[%clk 0:02:33]} 16. Bc2 {[%clk 0:02:35]}  Bb7 {[%clk 0:02:31]} 17. Bg3 {[%clk 0:02:35]}  Rac8 {[%clk 0:02:30]} 18. Bb3 {[%clk 0:02:34]}  Nd7 {[%clk 0:02:25]} 19. Rac1 {[%clk 0:02:31]}  Bg5 {[%clk 0:02:20]} 20. Rcd1 {[%clk 0:02:29]}  Be7 {[%clk 0:02:18]} 21. Qh5 {[%clk 0:02:27]}  Bf8 {[%clk 0:02:14]} 22. Ba4 {[%clk 0:02:18]}  g6 {[%clk 0:02:07]} 23. Qf3 {[%clk 0:02:15]}  Nb8 {[%clk 0:01:59]} 24. Qf6 {[%clk 0:02:00]}  Bg7 {[%clk 0:01:46]} 25. Qh4 {[%clk 0:01:55]}  Nc6 {[%clk 0:01:36]} 26. Bxc6 {[%clk 0:01:46]}  Bxc6 {[%clk 0:01:35]} 27. f3 {[%clk 0:01:45]}  g5 {[%clk 0:01:26]} 28. Qg4 {[%clk 0:01:44]}  Qe7 {[%clk 0:01:23]} 29. h4 {[%clk 0:01:42]}  f6 {[%clk 0:01:22]} 30. hxg5 {[%clk 0:01:37]}  hxg5 {[%clk 0:01:22]} 31. Bf2 {[%clk 0:01:37]}  Rxd1 {[%clk 0:01:07]} 32. Rxd1 {[%clk 0:01:36]}  Rb8 {[%clk 0:01:08]} 33. Ne2 {[%clk 0:01:31]}  Be8 {[%clk 0:01:05]} 34. Be3 {[%clk 0:01:28]}  b5 {[%clk 0:01:01]} 35. c5 {[%clk 0:01:28]}  Rc8 {[%clk 0:00:58]} 36. Ng3 {[%clk 0:01:25]}  Rc6 {[%clk 0:00:54]} 37. b4 {[%clk 0:01:24]}  Bg6 {[%clk 0:00:50]} 38. Kf2 {[%clk 0:01:21]}  Qe8 {[%clk 0:00:47]} 39. Rh1 {[%clk 0:01:14]}  Bf7 {[%clk 0:00:41]} 40. Nh5 {[%clk 0:01:13]}  Bxh5 {[%clk 0:00:41]} 41. Rxh5 {[%clk 0:01:12]}  Qg6 {[%clk 0:00:39]} 42. Rh1 {[%clk 0:01:04]}  Qe8 {[%clk 0:00:37]} 43. Qh3 {[%clk 0:01:00]}  Qg6 {[%clk 0:00:36]} 44. Rd1 {[%clk 0:00:59]}  Qe8 {[%clk 0:00:34]} 45. Rd2 {[%clk 0:00:58]}  Bf8 {[%clk 0:00:29]} 46. Qh1 {[%clk 0:00:57]}  Rc8 {[%clk 0:00:27]} 47. Qd1 {[%clk 0:00:56]}  Be7 {[%clk 0:00:25]} 48. Rd7 {[%clk 0:00:50]}  Rd8 {[%clk 0:00:21]} 49. c6 {[%clk 0:00:43]}  Rxd7 {[%clk 0:00:21]} 50. cxd7 {[%clk 0:00:44]}  Qd8 {[%clk 0:00:20]} 51. Bc5 {[%clk 0:00:44]}  Bf8 {[%clk 0:00:17]} 52. a3 {[%clk 0:00:42]}  Kf7 {[%clk 0:00:15]} 53. Kg3 {[%clk 0:00:34]}  Kg7 {[%clk 0:00:12]} 54. Bxf8+ {[%clk 0:00:28]}  Kxf8 {[%clk 0:00:12]} 55. Qd6+ {[%clk 0:00:29]}  Kf7 {[%clk 0:00:12]} 56. Kg4 {[%clk 0:00:27]}  Qh8 {[%clk 0:00:08]} 57. f4 {[%clk 0:00:14]}  Qh4+ {[%clk 0:00:06]} 58. Kf3 {[%clk 0:00:15]}  Qxf4+ {[%clk 0:00:06]} 59. Ke2 {[%clk 0:00:16]}  Qxe4+ {[%clk 0:00:06]} 60. Kd1 {[%clk 0:00:15]}  Qb1+ {[%clk 0:00:05]} 61. Kd2 {[%clk 0:00:15]}  Qb2+ {[%clk 0:00:06]} 62. Ke1 {[%clk 0:00:15]}  Qc1+ {[%clk 0:00:05]} 63. Kf2 {[%clk 0:00:15]}  Qc2+ {[%clk 0:00:05]} 64. Kg1 {[%clk 0:00:15]}  Qc1+ {[%clk 0:00:04]} 65. Kf2 {[%clk 0:00:15]}  Qc2+ {[%clk 0:00:03]} 66. Kg3 {[%clk 0:00:14]}  Qc3+ {[%clk 0:00:03]} 67. Kh2 {[%clk 0:00:14]}  Qe3 {[%clk 0:00:02]} 68. d8=Q {[%clk 0:00:14]}  Qf4+ {[%clk 0:00:02]} 69. Kg1 {[%clk 0:00:15]}  Qe3+ {[%clk 0:00:02]} 70. Kf1 {[%clk 0:00:15]}  Qc1+ {[%clk 0:00:01]} 71. Ke2 {[%clk 0:00:15]}  Qc2+ {[%clk 0:00:01]} 72. Qd2 {[%clk 0:00:16]}  Qe4+ {[%clk 0:00:01]} 73. Qe3 {[%clk 0:00:16]}  Qc2+ {[%clk 0:00:01]} 74. Qdd2 {[%clk 0:00:16]}  Qc4+ {[%clk 0:00:01]} 75. Kf2 {[%clk 0:00:16]}  Qg4 {[%clk 0:00:01]} 76. Qf3 {[%clk 0:00:16]}  Qh4+ {[%clk 0:00:01]} 77. Kg1 {[%clk 0:00:16]} 1-0


[Site "https://www.chess.com"]

[Event "Titled Tuesday Blitz July 13 2021"]
[White "Djordjevic, Vuk"]
[Black "Gabdushev, Ruslan"]
[WhiteFideId "902098"]
[BlackFideId "4137833"]
[WhiteElo "2463"]
[BlackElo "2312"]
[Result "1-0"]
[Round "02"]
[TimeControl "180+1"]
[Date "2021.07.13"]
[WhiteClock "0:00:14"]
[BlackClock "0:00:01"]

1. d4 {[%clk 0:03:00]}  Nc6 {[%clk 0:02:59]} 2. Nf3 {[%clk 0:03:00]}  d6 {[%clk 0:02:59]} 3. e4 {[%clk 0:02:57]}  Bg4 {[%clk 0:02:58]} 4. Be3 {[%clk 0:02:57]}  Nf6 {[%clk 0:02:57]} 5. Nc3 {[%clk 0:02:57]}  e6 {[%clk 0:02:57]} 6. Be2 {[%clk 0:02:49]}  d5 {[%clk 0:02:56]} 7. e5 {[%clk 0:02:44]}  Nd7 {[%clk 0:02:56]} 8. O-O {[%clk 0:02:38]}  Be7 {[%clk 0:02:54]} 9. Ne1 {[%clk 0:02:15]}  Bxe2 {[%clk 0:02:49]} 10. Nxe2 {[%clk 0:02:15]}  O-O {[%clk 0:02:47]} 11. f4 {[%clk 0:02:14]}  f6 {[%clk 0:02:39]} 12. Nf3 {[%clk 0:01:54]}  Nb6 {[%clk 0:02:36]} 13. exf6 {[%clk 0:01:44]}  Bxf6 {[%clk 0:02:32]} 14. c3 {[%clk 0:01:42]}  Nc4 {[%clk 0:02:25]} 15. Bc1 {[%clk 0:01:41]}  Ne7 {[%clk 0:01:48]} 16. Qd3 {[%clk 0:01:30]}  Nf5 {[%clk 0:01:44]} 17. g4 {[%clk 0:01:28]}  Nfd6 {[%clk 0:01:41]} 18. Ng3 {[%clk 0:01:17]}  Bh4 {[%clk 0:01:27]} 19. b3 {[%clk 0:01:17]}  Bxg3 {[%clk 0:01:23]} 20. hxg3 {[%clk 0:01:18]}  Nb6 {[%clk 0:01:21]} 21. Ba3 {[%clk 0:01:18]}  h6 {[%clk 0:01:11]} 22. Rae1 {[%clk 0:01:14]}  Qf6 {[%clk 0:01:04]} 23. g5 {[%clk 0:01:10]}  Qf5 {[%clk 0:00:53]} 24. Qxf5 {[%clk 0:01:06]}  exf5 {[%clk 0:00:52]} 25. gxh6 {[%clk 0:01:03]}  gxh6 {[%clk 0:00:49]} 26. Re6 {[%clk 0:00:41]}  Kg7 {[%clk 0:00:46]} 27. Bxd6 {[%clk 0:00:35]}  cxd6 {[%clk 0:00:46]} 28. Rxd6 {[%clk 0:00:35]}  Rac8 {[%clk 0:00:44]} 29. Rc1 {[%clk 0:00:35]}  Rf6 {[%clk 0:00:32]} 30. Nh4 {[%clk 0:00:27]}  Rc6 {[%clk 0:00:22]} 31. Rd8 {[%clk 0:00:25]}  Rc8 {[%clk 0:00:18]} 32. Rxc8 {[%clk 0:00:25]}  Nxc8 {[%clk 0:00:18]} 33. Re1 {[%clk 0:00:25]}  Kf7 {[%clk 0:00:08]} 34. Re5 {[%clk 0:00:25]}  Ne7 {[%clk 0:00:08]} 35. c4 {[%clk 0:00:18]}  dxc4 {[%clk 0:00:07]} 36. bxc4 {[%clk 0:00:19]}  Ra6 {[%clk 0:00:05]} 37. Nxf5 {[%clk 0:00:18]}  Ng6 {[%clk 0:00:05]} 38. Nxh6+ {[%clk 0:00:15]}  Kg7 {[%clk 0:00:02]} 39. Rh5 {[%clk 0:00:15]}  Rxa2 {[%clk 0:00:02]} 40. Nf5+ {[%clk 0:00:15]}  Kf6 {[%clk 0:00:02]} 41. Ne3 {[%clk 0:00:15]}  Ne7 {[%clk 0:00:01]} 42. g4 {[%clk 0:00:14]} 1-0


[Site "https://www.chess.com"]

[Event "Titled Tuesday Blitz July 13 2021"]
[White "FGHSMN"]
[Black "Aradhya, Garg"]
[BlackFideId "25006746"]
[WhiteElo "2482"]
[BlackElo "2146"]
[Result "1-0"]
[Round "02"]
[TimeControl "180+1"]
[Date "2021.07.13"]
[WhiteClock "0:00:20"]
[BlackClock "0:00:13"]

1. e4 {[%clk 0:03:00]}  e5 {[%clk 0:03:00]} 2. f4 {[%clk 0:02:59]}  Bc5 {[%clk 0:03:00]} 3. Nf3 {[%clk 0:02:56]}  d6 {[%clk 0:03:00]} 4. c3 {[%clk 0:02:54]}  Nf6 {[%clk 0:03:00]} 5. d4 {[%clk 0:02:54]}  Bb6 {[%clk 0:03:00]} 6. fxe5 {[%clk 0:02:38]}  dxe5 {[%clk 0:02:45]} 7. Nxe5 {[%clk 0:02:36]}  O-O {[%clk 0:02:45]} 8. Bd3 {[%clk 0:02:28]}  c5 {[%clk 0:02:43]} 9. Nf3 {[%clk 0:02:11]}  cxd4 {[%clk 0:02:43]} 10. cxd4 {[%clk 0:02:07]}  Bg4 {[%clk 0:02:11]} 11. O-O {[%clk 0:01:58]}  Nc6 {[%clk 0:02:06]} 12. Kh1 {[%clk 0:01:48]}  Bxf3 {[%clk 0:00:58]} 13. Qxf3 {[%clk 0:01:44]}  Qxd4 {[%clk 0:00:55]} 14. Qe2 {[%clk 0:01:30]}  Rad8 {[%clk 0:00:54]} 15. Bc2 {[%clk 0:01:27]}  Nb4 {[%clk 0:00:49]} 16. Nc3 {[%clk 0:01:06]}  Nxc2 {[%clk 0:00:46]} 17. Qxc2 {[%clk 0:01:07]}  Qd3 {[%clk 0:00:45]} 18. Qxd3 {[%clk 0:01:04]}  Rxd3 {[%clk 0:00:46]} 19. Bg5 {[%clk 0:00:32]}  Ng4 {[%clk 0:00:46]} 20. h3 {[%clk 0:00:27]}  h6 {[%clk 0:00:38]} 21. Bf4 {[%clk 0:00:25]}  Nf6 {[%clk 0:00:35]} 22. Rad1 {[%clk 0:00:22]}  Rfd8 {[%clk 0:00:34]} 23. e5 {[%clk 0:00:20]}  Nh5 {[%clk 0:00:32]} 24. Bh2 {[%clk 0:00:18]}  Rxd1 {[%clk 0:00:28]} 25. Rxd1 {[%clk 0:00:19]}  Rxd1+ {[%clk 0:00:27]} 26. Nxd1 {[%clk 0:00:20]}  g6 {[%clk 0:00:25]} 27. g4 {[%clk 0:00:20]}  Ng7 {[%clk 0:00:25]} 28. Kg2 {[%clk 0:00:20]}  Kf8 {[%clk 0:00:24]} 29. Kf3 {[%clk 0:00:20]}  Ne6 {[%clk 0:00:20]} 30. b3 {[%clk 0:00:20]}  Ng5+ {[%clk 0:00:20]} 31. Kg2 {[%clk 0:00:20]}  Ke7 {[%clk 0:00:20]} 32. Bf4 {[%clk 0:00:20]}  Ke6 {[%clk 0:00:20]} 33. h4 {[%clk 0:00:20]}  Ne4 {[%clk 0:00:20]} 34. Bxh6 {[%clk 0:00:21]}  Kxe5 {[%clk 0:00:21]} 35. h5 {[%clk 0:00:21]}  Nf6 {[%clk 0:00:19]} 36. Bg7 {[%clk 0:00:21]}  Ke6 {[%clk 0:00:19]} 37. h6 {[%clk 0:00:19]}  Nh7 {[%clk 0:00:19]} 38. Nc3 {[%clk 0:00:18]}  f5 {[%clk 0:00:19]} 39. gxf5+ {[%clk 0:00:18]}  gxf5 {[%clk 0:00:20]} 40. Nb5 {[%clk 0:00:18]}  Kd5 {[%clk 0:00:16]} 41. Kf3 {[%clk 0:00:17]}  a6 {[%clk 0:00:15]} 42. Nc3+ {[%clk 0:00:17]}  Ke6 {[%clk 0:00:15]} 43. Ne2 {[%clk 0:00:17]}  Ng5+ {[%clk 0:00:14]} 44. Kf4 {[%clk 0:00:17]}  Nh7 {[%clk 0:00:15]} 45. Ng3 {[%clk 0:00:17]}  Bc7+ {[%clk 0:00:14]} 46. Kf3 {[%clk 0:00:17]}  Ng5+ {[%clk 0:00:14]} 47. Kg2 {[%clk 0:00:15]}  f4 {[%clk 0:00:14]} 48. Nh5 {[%clk 0:00:16]}  Kf5 {[%clk 0:00:14]} 49. Kf1 {[%clk 0:00:16]}  f3 {[%clk 0:00:12]} 50. Nf6 {[%clk 0:00:16]}  Kg6 {[%clk 0:00:11]} 51. Nd5 {[%clk 0:00:17]}  Bg3 {[%clk 0:00:10]} 52. Ne7+ {[%clk 0:00:17]}  Kh7 {[%clk 0:00:10]} 53. Nf5 {[%clk 0:00:17]}  Ne4 {[%clk 0:00:10]} 54. Nxg3 {[%clk 0:00:17]}  Nxg3+ {[%clk 0:00:11]} 55. Kf2 {[%clk 0:00:17]}  Nf5 {[%clk 0:00:11]} 56. Kxf3 {[%clk 0:00:18]}  Nxg7 {[%clk 0:00:11]} 57. hxg7 {[%clk 0:00:19]}  Kxg7 {[%clk 0:00:12]} 58. Ke4 {[%clk 0:00:20]}  Kf6 {[%clk 0:00:13]} 59. Kd5 {[%clk 0:00:20]}  Ke7 {[%clk 0:00:13]} 60. Kc5 {[%clk 0:00:21]}  Kd7 {[%clk 0:00:14]} 61. Kb6 {[%clk 0:00:21]}  Kc8 {[%clk 0:00:14]} 62. Ka7 {[%clk 0:00:20]}  Kc7 {[%clk 0:00:14]} 63. b4 {[%clk 0:00:20]}  a5 {[%clk 0:00:12]} 64. b5 {[%clk 0:00:18]}  a4 {[%clk 0:00:12]} 65. a3 {[%clk 0:00:17]}  Kd6 {[%clk 0:00:10]} 66. Kxb7 {[%clk 0:00:17]}  Kd5 {[%clk 0:00:11]} 67. Ka6 {[%clk 0:00:17]}  Kc4 {[%clk 0:00:11]} 68. b6 {[%clk 0:00:18]}  Kb3 {[%clk 0:00:12]} 69. b7 {[%clk 0:00:19]}  Kxa3 {[%clk 0:00:13]} 70. b8=Q {[%clk 0:00:19]}  Ka2 {[%clk 0:00:14]} 71. Ka5 {[%clk 0:00:19]}  a3 {[%clk 0:00:14]} 72. Ka4 {[%clk 0:00:19]}  Ka1 {[%clk 0:00:14]} 73. Qe5+ {[%clk 0:00:19]}  Ka2 {[%clk 0:00:13]} 74. Qe2+ {[%clk 0:00:19]}  Kb1 {[%clk 0:00:13]} 75. Kb3 {[%clk 0:00:19]}  a2 {[%clk 0:00:13]} 76. Qe1# {[%clk 0:00:20]} 1-0


[Site "https://www.chess.com"]

[Event "Titled Tuesday Blitz July 13 2021"]
[White "Florescu, Codrut-Constantin"]
[Black "Sjugirov, Sanan"]
[WhiteFideId "1202200"]
[BlackFideId "4189302"]
[WhiteElo "2243"]
[BlackElo "2472"]
[Result "0-1"]
[Round "02"]
[TimeControl "180+1"]
[Date "2021.07.13"]
[WhiteClock "0:00:11"]
[BlackClock "0:00:10"]

1. d4 {[%clk 0:03:00]}  Nf6 {[%clk 0:02:59]} 2. c4 {[%clk 0:03:00]}  e6 {[%clk 0:02:51]} 3. Nf3 {[%clk 0:02:59]}  d5 {[%clk 0:02:50]} 4. Bg5 {[%clk 0:02:58]}  Nbd7 {[%clk 0:02:42]} 5. e3 {[%clk 0:02:58]}  h6 {[%clk 0:02:38]} 6. Bf4 {[%clk 0:02:57]}  Be7 {[%clk 0:02:28]} 7. Nc3 {[%clk 0:02:55]}  c6 {[%clk 0:02:27]} 8. Bd3 {[%clk 0:02:53]}  O-O {[%clk 0:02:24]} 9. O-O {[%clk 0:02:52]}  dxc4 {[%clk 0:02:23]} 10. Bxc4 {[%clk 0:02:52]}  b5 {[%clk 0:02:24]} 11. Bd3 {[%clk 0:02:50]}  a6 {[%clk 0:02:19]} 12. h3 {[%clk 0:02:49]}  Bb7 {[%clk 0:02:18]} 13. a4 {[%clk 0:02:40]}  b4 {[%clk 0:02:17]} 14. Ne4 {[%clk 0:02:34]}  c5 {[%clk 0:02:16]} 15. Nd6 {[%clk 0:02:15]}  Bc6 {[%clk 0:02:06]} 16. Ne5 {[%clk 0:02:14]}  Bxd6 {[%clk 0:01:56]} 17. Nxc6 {[%clk 0:02:13]}  Qc7 {[%clk 0:01:54]} 18. Bxd6 {[%clk 0:02:07]}  Qxd6 {[%clk 0:01:53]} 19. Na5 {[%clk 0:02:05]}  cxd4 {[%clk 0:01:52]} 20. Nc4 {[%clk 0:02:04]}  Qc7 {[%clk 0:01:30]} 21. exd4 {[%clk 0:02:01]}  Nb6 {[%clk 0:01:30]} 22. Ne5 {[%clk 0:01:55]}  Nbd5 {[%clk 0:01:19]} 23. Rc1 {[%clk 0:01:51]}  Qb7 {[%clk 0:01:12]} 24. Rc5 {[%clk 0:01:36]}  Nf4 {[%clk 0:01:08]} 25. f3 {[%clk 0:01:07]}  Rfd8 {[%clk 0:01:08]} 26. Bc4 {[%clk 0:01:01]}  Rac8 {[%clk 0:01:06]} 27. Rxc8 {[%clk 0:00:49]}  Qxc8 {[%clk 0:01:06]} 28. Re1 {[%clk 0:00:42]}  a5 {[%clk 0:00:57]} 29. Qd2 {[%clk 0:00:40]}  N4d5 {[%clk 0:00:45]} 30. Bb5 {[%clk 0:00:37]}  Ne7 {[%clk 0:00:42]} 31. Rc1 {[%clk 0:00:33]}  Qb7 {[%clk 0:00:40]} 32. Qf2 {[%clk 0:00:27]}  Qb6 {[%clk 0:00:36]} 33. Rc5 {[%clk 0:00:25]}  Qd6 {[%clk 0:00:30]} 34. Nc4 {[%clk 0:00:23]}  Qf4 {[%clk 0:00:19]} 35. Nxa5 {[%clk 0:00:22]}  Rxd4 {[%clk 0:00:19]} 36. Bf1 {[%clk 0:00:19]}  Rd2 {[%clk 0:00:19]} 37. Qe1 {[%clk 0:00:16]}  Qd4+ {[%clk 0:00:18]} 38. Kh2 {[%clk 0:00:14]}  Rd1 {[%clk 0:00:18]} 39. Qe5 {[%clk 0:00:13]}  Qxe5+ {[%clk 0:00:15]} 40. Rxe5 {[%clk 0:00:14]}  Rxf1 {[%clk 0:00:16]} 41. Nc4 {[%clk 0:00:14]}  Ra1 {[%clk 0:00:15]} 42. a5 {[%clk 0:00:13]}  Nfd5 {[%clk 0:00:15]} 43. Re4 {[%clk 0:00:13]}  Nc6 {[%clk 0:00:15]} 44. Nd6 {[%clk 0:00:12]}  Nxa5 {[%clk 0:00:13]} 45. Rd4 {[%clk 0:00:11]}  Rc1 {[%clk 0:00:12]} 46. Ne4 {[%clk 0:00:12]}  Nc6 {[%clk 0:00:12]} 47. Rd2 {[%clk 0:00:11]}  b3 {[%clk 0:00:11]} 48. Nd6 {[%clk 0:00:12]}  Rc2 {[%clk 0:00:11]} 49. Rd3 {[%clk 0:00:12]}  Rxg2+ {[%clk 0:00:11]} 50. Kh1 {[%clk 0:00:11]}  Rxb2 {[%clk 0:00:10]} 51. Ne4 {[%clk 0:00:12]}  Ne5 {[%clk 0:00:10]} 52. Rd4 {[%clk 0:00:11]}  Nxf3 {[%clk 0:00:10]} 0-1


[Site "https://www.chess.com"]

[Event "Titled Tuesday Blitz July 13 2021"]
[White "Francis, Onkemetse"]
[Black "Flores Quillas, Diego Saul Rodri"]
[WhiteFideId "11301287"]
[BlackFideId "3822508"]
[WhiteElo "1745"]
[BlackElo "2071"]
[Result "0-1"]
[Round "02"]
[TimeControl "180+1"]
[Date "2021.07.13"]
[WhiteClock "0:00:12"]
[BlackClock "0:00:56"]

1. e4 {[%clk 0:03:00]}  c5 {[%clk 0:02:57]} 2. Nc3 {[%clk 0:02:58]}  Nc6 {[%clk 0:02:56]} 3. g3 {[%clk 0:02:57]}  g6 {[%clk 0:02:50]} 4. Bg2 {[%clk 0:02:57]}  Bg7 {[%clk 0:02:44]} 5. d3 {[%clk 0:02:56]}  d6 {[%clk 0:02:43]} 6. f4 {[%clk 0:02:55]}  e6 {[%clk 0:02:39]} 7. Nf3 {[%clk 0:02:55]}  Nge7 {[%clk 0:02:34]} 8. O-O {[%clk 0:02:54]}  O-O {[%clk 0:02:34]} 9. Be3 {[%clk 0:02:53]}  Nd4 {[%clk 0:02:33]} 10. Qd2 {[%clk 0:02:43]}  b6 {[%clk 0:02:24]} 11. Nd1 {[%clk 0:02:41]}  Bb7 {[%clk 0:02:23]} 12. c3 {[%clk 0:02:40]}  Nxf3+ {[%clk 0:02:23]} 13. Bxf3 {[%clk 0:02:39]}  Qd7 {[%clk 0:02:24]} 14. Nf2 {[%clk 0:02:38]}  f5 {[%clk 0:02:23]} 15. d4 {[%clk 0:02:31]}  fxe4 {[%clk 0:01:58]} 16. Bxe4 {[%clk 0:02:28]}  c4 {[%clk 0:01:56]} 17. Rad1 {[%clk 0:02:15]}  Nd5 {[%clk 0:01:53]} 18. Bg2 {[%clk 0:02:07]}  Rae8 {[%clk 0:01:35]} 19. Rfe1 {[%clk 0:02:05]}  b5 {[%clk 0:01:30]} 20. Ne4 {[%clk 0:02:00]}  a5 {[%clk 0:01:27]} 21. Bf2 {[%clk 0:01:57]}  a4 {[%clk 0:01:27]} 22. Ng5 {[%clk 0:01:54]}  h6 {[%clk 0:01:25]} 23. Nf3 {[%clk 0:01:47]}  Nf6 {[%clk 0:01:24]} 24. Nh4 {[%clk 0:01:33]}  Bxg2 {[%clk 0:01:22]} 25. Kxg2 {[%clk 0:01:29]}  Qf7 {[%clk 0:01:22]} 26. Re2 {[%clk 0:01:19]}  d5 {[%clk 0:01:16]} 27. h3 {[%clk 0:01:17]}  Ne4 {[%clk 0:01:16]} 28. Qe3 {[%clk 0:01:12]}  g5 {[%clk 0:01:13]} 29. fxg5 {[%clk 0:00:59]}  hxg5 {[%clk 0:01:14]} 30. Nf3 {[%clk 0:00:58]}  Qg6 {[%clk 0:01:13]} 31. Ne5 {[%clk 0:00:47]}  Bxe5 {[%clk 0:01:09]} 32. dxe5 {[%clk 0:00:47]}  Rf7 {[%clk 0:01:06]} 33. Rf1 {[%clk 0:00:44]}  Ref8 {[%clk 0:01:06]} 34. Qb6 {[%clk 0:00:30]}  g4 {[%clk 0:01:03]} 35. h4 {[%clk 0:00:27]}  Rf3 {[%clk 0:01:01]} 36. Qxb5 {[%clk 0:00:19]}  Qf5 {[%clk 0:01:00]} 37. Qb6 {[%clk 0:00:17]}  Rxg3+ {[%clk 0:00:56]} 38. Bxg3 {[%clk 0:00:15]}  Qxf1+ {[%clk 0:00:55]} 39. Kh2 {[%clk 0:00:14]}  Qh3+ {[%clk 0:00:56]} 40. Kg1 {[%clk 0:00:12]}  Rf1# {[%clk 0:00:56]} 0-1


[Site "https://www.chess.com"]